bitfinex-derivatives/quotes_ETHF0:USTF0_20250320
["timestamp","ask_amount","ask_price","bid_price","bid_amount"]
[1742449188928,1.3207,2017.2,2017.1,0.7932]
[1742449189929,2.599,2017.2,2017.1,2.1751]
[1742449190934,2.599,2017.2,2017.1,2.80714079]
[1742449191729,1.2783,2017.2,2017.1,2.80714079]
[1742449195533,0.70444361,2017.4,2017.3,0.79312]
[1742449195736,1.39134361,2017.4,2017.3,0.79312]
[1742449197037,1.39134361,2017.4,2017.3,2.15752]
[1742449197335,3.57522361,2017.4,2017.3,2.78896346]
[1742449197536,2.78214361,2017.4,2017.3,43.58896346]
[1742449197927,1.39824361,2017.4,2017.3,43.58896346]
[1742449198230,1.39824361,2017.4,2017.3,44.22966346]
[1742449200339,1.39824361,2017.4,2017.3,2.78896346]
[1742449200742,2.70194361,2017.4,2017.3,2.78896346]
[1742449200934,2.70194361,2017.4,2017.3,43.58896346]
[1742449202239,1.39824361,2017.4,2017.3,44.25046346]
[1742449212451,1.39824361,2017.4,2017.3,43.58896346]
[1742449212947,2.69414361,2017.4,2017.3,43.58896346]
[1742449217560,1.39824361,2017.4,2017.3,43.58896346]
[1742449218450,1.39824361,2017.4,2017.3,46.79676346]
[1742449222653,1.39824361,2017.4,2017.3,49.96176346]
[1742449235262,2.71314361,2017.4,2017.3,49.96176346]
[1742449239464,1.39824361,2017.4,2017.3,49.96176346]
[1742449247261,0.7061,2017.7,2017.6,0.793]
[1742449247671,0.7061,2017.7,2017.6,4.0008]
[1742449247968,0.7061,2017.7,2017.6,44.8008]
[1742449248264,0.7061,2017.7,2017.6,46.10034346]
[1742449248672,2.0063,2017.7,2017.6,47.44984346]
[1742449252661,2.79926,2017.7,2017.6,3.83924346]
[1742449253272,2.79926,2017.7,2017.6,4.63224346]
[1742449259880,2.79926,2017.7,2017.6,4.0008]
[1742449260280,2.79926,2017.7,2017.6,3.2078]
[1742449260281,5.96326,2017.7,2017.6,3.2078]
[1742449261582,5.96326,2017.7,2017.6,4.0008]
[1742449262386,5.96326,2017.7,2017.6,5.406]
[1742449263179,4.00068,2018.0,2017.9,0.79288]
[1742449263479,4.5376,2018.0,2017.7,2.7517]
[1742449263686,0.79294,2017.8,2017.7,0.79293]
[1742449264183,0.79294,2017.8,2017.7,1.42578958]
[1742449264872,0.79294,2017.8,2017.7,2.74468958]
[1742449265072,1.3099,2017.9,2017.8,0.79292]
[1742449265482,1.3099,2017.9,2017.8,2.11182]
[1742449265688,1.3099,2017.9,2017.8,2.74467958]
[1742449265989,2.10278,2017.9,2017.8,2.74467958]
[1742449266286,1.3099,2017.9,2017.8,2.74467958]
[1742449267385,2.10278,2017.9,2017.8,0.63285958]
[1742449267586,0.79292,2017.8,2017.7,1.4007]
[1742449267889,2.08952,2017.8,2017.7,1.4007]
[1742449268285,2.78012,2017.8,2017.7,1.4007]
[1742449268481,2.78012,2017.8,2017.7,2.03353586]
[1742449269082,2.78012,2017.8,2017.7,2.82647586]
[1742449270294,2.78012,2017.8,2017.7,0.63283586]
[1742449270791,2.78012,2017.8,2017.7,0.79296]
[1742449271795,0.793,2017.6,2017.5,41.59301]
[1742449271984,0.793,2017.6,2017.5,40.8]
[1742449272184,0.793,2017.6,2017.5,41.59304]
[1742449272386,0.793,2017.6,2017.5,42.77915688]
[1742449272387,2.1819,2017.6,2017.5,42.77915688]
[1742449272586,2.1819,2017.6,2017.5,43.57219688]
[1742449272787,2.1819,2017.6,2017.5,42.77915688]
[1742449273192,2.8342,2017.6,2017.5,42.77915688]
[1742449274296,2.8342,2017.6,2017.5,43.57219688]
[1742449276197,4.5529,2017.6,2017.5,43.57219688]
[1742449276392,4.5529,2017.6,2017.5,44.95029688]
[1742449277795,1.3889,2017.6,2017.5,44.95029688]
[1742449278292,3.95698,2017.7,2017.6,0.793]
[1742449278496,5.36208,2017.7,2017.6,2.146]
[1742449278796,5.36206,2017.7,2017.6,2.77895688]
[1742449279806,5.36206,2017.7,2017.6,1.98595688]
[1742449280395,5.36206,2017.7,2017.6,2.77895688]
[1742449280700,5.36206,2017.7,2017.6,1.353]
[1742449284705,5.36206,2017.7,2017.6,2.146]
[1742449285708,5.36206,2017.7,2017.6,1.353]
[1742449286310,5.36206,2017.7,2017.6,2.146]
[1742449286900,5.36206,2017.7,2017.6,1.353]
[1742449288408,8.56986,2017.7,2017.6,1.353]
[1742449288612,0.793,2017.6,2017.5,40.8]
[1742449288815,0.793,2017.6,2017.4,0.00744361]
[1742449288816,0.7932,2017.1,2017.0,3.2078]
[1742449289002,0.79328,2016.9,2016.8,0.68]
[1742449289198,0.79328,2016.9,2016.8,41.48]
[1742449290006,0.79328,2016.9,2016.8,42.27332]
[1742449290212,1.3272,2016.9,2016.8,44.31683566]
[1742449290617,1.3272,2016.9,2016.8,43.68412]
[1742449291409,2.12048,2016.9,2016.8,43.68412]
[1742449291813,1.3272,2016.9,2016.8,43.68412]
[1742449293227,0.00744361,2017.1,2016.8,42.8908]
[1742449293417,5.24766361,2017.1,2017.0,0.79324]
[1742449293715,5.24766361,2017.1,2017.0,2.16714]
[1742449294328,4.45444361,2017.1,2017.0,2.16714]
[1742449294517,3.17144361,2017.1,2017.0,2.16714]
[1742449294717,3.96464361,2017.1,2017.0,2.16714]
[1742449294919,0.80064361,2017.1,2017.0,2.16714]
[1742449295521,2.11054361,2017.1,2017.0,2.16714]
[1742449296626,1.31734361,2017.1,2017.0,2.16714]
[1742449297319,2.11054361,2017.1,2017.0,2.16714]
[1742449297826,1.31734361,2017.1,2017.0,2.16714]
[1742449298125,0.00744361,2017.1,2017.0,2.16714]
[1742449301430,0.00744361,2017.1,2017.0,2.79850163]
[1742449301629,3.2078,2017.3,2017.2,0.79316]
[1742449301927,3.2078,2017.3,2017.2,41.59316]
[1742449302322,3.2078,2017.3,2017.2,43.52956]
[1742449303029,4.00092,2017.3,2017.2,43.52956]
[1742449303227,5.32872,2017.3,2017.2,43.52956]
[1742449303434,6.01562,2017.3,2017.2,43.52956]
[1742449305631,5.2225,2017.3,2017.2,43.52956]
[1742449305831,4.5356,2017.3,2017.2,43.52956]
[1742449307625,1.3278,2017.3,2017.2,43.52956]
[1742449308930,3.2078,2017.4,2017.3,0.79312]
[1742449309238,3.2078,2017.4,2017.3,2.19922]
[1742449309635,1.3621,2017.6,2017.5,0.79304]
[1742449309931,6.3718,2017.7,2017.6,0.793]
[1742449310434,2.20474,2017.8,2017.7,0.79296]
[1742449310632,0.79294,2017.8,2017.7,0.79296]
[1742449311139,2.1064,2017.9,2017.8,0.79292]
[1742449311339,5.2704,2017.9,2017.8,0.79292]
[1742449311829,5.2704,2017.9,2017.8,2.16092]
[1742449312237,5.2704,2017.9,2017.8,1.368]
[1742449313628,5.2704,2017.9,2017.8,2.16092]
[1742449314030,5.2704,2017.9,2017.8,1.368]
[1742449315643,5.2704,2017.9,2017.6,0.00744361]
[1742449315832,5.2704,2017.9,706.84,0.22235737]
[1742449315833,0.79308,2017.4,2017.3,1.275]
[1742449316027,6.3708,2017.4,2016.6,3.2078]
[1742449316337,0.79333,2016.8,2016.7,0.79331]
[1742449316536,0.79333,2016.8,2016.7,2.12531]
[1742449316739,0.7933,2016.9,2016.8,0.79329]
[1742449316942,0.7933,2016.9,2016.8,2.12529]
[1742449317936,0.7933,2016.9,2016.8,1.332]
[1742449318242,2.1265,2016.9,2016.8,1.332]
[1742449321836,0.6607,2016.9,2016.8,1.332]
[1742449322041,3.96471361,2017.0,2016.9,0.79328]
[1742449322241,0.79328,2016.9,2016.8,2.12532]
[1742449322442,0.79328,2016.9,2016.8,1.332]
[1742449325143,0.79335,2016.7,2016.6,46.6024]
[1742449325449,0.79335,2016.7,2016.6,47.39579]
[1742449326447,0.79335,2016.7,2016.6,46.6024]
[1742449327436,5.26915,2016.8,2016.6,46.6024]
[1742449327746,5.26915,2016.8,2016.7,2.13135]
[1742449328348,0.7933,2016.9,2016.8,0.79332]
[1742449328548,9.92470361,2017.0,2016.9,0.79328]
[1742449329348,9.13144361,2017.0,2016.7,1.338]
[1742449329854,9.13144361,2017.0,2016.9,0.79328]
[1742449330840,8.12048361,2017.0,2016.9,0.79328]
[1742449331040,2.16048361,2017.0,2016.9,0.79328]
[1742449332650,2.16048361,2017.0,2016.8,1.2971]
[1742449332651,0.79328,2016.9,2016.8,1.2971]
[1742449332849,2.07868,2016.9,2016.8,2.09042]
[1742449333047,2.07868,2016.9,2016.8,1.2971]
[1742449335039,5.24268,2016.9,2016.8,2.09042]
[1742449335554,1.2854,2016.9,2016.8,2.09042]
[1742449335948,2.07868,2016.9,2016.8,2.09042]
[1742449337251,0.79328,2016.9,2016.8,2.09042]
[1742449337445,2.14228,2016.9,2016.8,2.09042]
[1742449339553,2.14228,2016.9,2016.8,1.2971]
[1742449340152,0.79335,2016.7,2016.6,42.1172]
[1742449340347,0.79335,2016.7,2016.6,2.6225]
[1742449340757,3.49605,2016.7,2016.6,42.1053]
[1742449340958,3.49605,2016.7,2016.6,42.89869]
[1742449341255,3.49605,2016.7,2016.6,2.09869]
[1742449341649,2.13865,2016.7,2016.6,2.09869]
[1742449343055,2.13865,2016.7,2016.6,1.3053]
[1742449349961,2.13865,2016.7,2016.6,2.09869]
[1742449351866,2.13865,2016.7,2016.6,1.3053]
[1742449353261,2.13865,2016.7,2016.6,2.09869]
[1742449353757,2.13865,2016.7,2016.6,1.3053]
[1742449355267,2.13865,2016.7,2016.6,2.09869]
[1742449355969,2.13865,2016.7,2016.6,1.3053]
[1742449356668,2.13865,2016.7,2016.6,2.09869]
[1742449357054,2.13865,2016.7,2016.6,1.3053]
[1742449357260,2.13865,2016.7,2016.6,2.09869]
[1742449358560,2.13865,2016.7,2016.6,1.3053]
[1742449359462,0.79339,2016.6,2016.5,0.00744361]
[1742449359769,6.64549,2016.6,2016.5,0.00744361]
[1742449361264,6.64549,2016.6,2016.5,1.28674361]
[1742449362072,6.64549,2016.6,2016.5,1.92874361]
[1742449363774,5.28289,2016.6,2016.5,2.72217361]
[1742449364071,3.95739,2016.6,2016.5,2.72217361]
[1742449369279,3.95739,2016.6,2016.5,3.35575742]
[1742449369877,0.79339,2016.6,2016.5,3.35575742]
[1742449370282,2.20589,2016.6,2016.5,3.35575742]
[1742449371384,2.20589,2016.6,2016.5,2.56232742]
[1742449371578,2.20589,2016.6,2016.5,1.92032742]
[1742449372081,2.20589,2016.6,2016.5,1.28674361]
[1742449377983,2.20589,2016.6,2016.5,0.00744361]
[1742449379176,2.20589,2016.6,2016.5,0.80087361]
[1742449379371,4.5765,2016.6,2016.5,1.48287361]
[1742449379574,3.2078,2016.8,2016.7,0.79335]
[1742449380172,3.2078,2016.8,2016.7,2.80357091]
[1742449380173,4.00112,2016.8,2016.7,2.80357091]
[1742449381585,3.2078,2016.8,2016.7,2.80357091]
[1742449382080,4.00112,2016.8,2016.7,2.80357091]
[1742449382584,3.2078,2016.8,2016.7,2.80357091]
[1742449382786,4.00112,2016.8,2016.7,2.80357091]
[1742449383277,4.00112,2016.8,2016.7,2.01022091]
[1742449383878,4.00112,2016.8,2016.7,2.16975]
[1742449384572,4.00112,2016.8,2016.7,1.3764]
[1742449384781,4.69422,2016.8,2016.7,1.3764]
[1742449384986,5.33512,2016.8,2016.7,1.3764]
[1742449386886,5.33512,2016.8,2016.7,2.16975]
[1742449387086,6.70232,2016.8,2016.7,2.16975]
[1742449387787,9.86632,2016.8,2016.7,2.16975]
[1742449388583,9.86632,2016.8,2016.7,1.3764]
[1742449389084,9.86632,2016.8,2016.7,2.16975]
[1742449389889,7.739,2016.8,2016.7,2.16975]
[1742449390085,6.3718,2016.8,2016.7,2.16975]
[1742449390284,3.2078,2016.8,2016.7,2.16975]
[1742449390489,3.2078,2016.8,2016.7,2.80288702]
[1742449395881,2.13121361,2017.0,2016.9,0.79328]
[1742449396390,1.33794361,2017.0,2016.9,0.79328]
[1742449396589,1.33794361,2017.0,2016.9,2.75638]
[1742449396590,0.00744361,2017.0,2016.9,2.75638]
[1742449396793,0.00744361,2017.0,2016.9,3.38890108]
[1742449400486,1.33044361,2017.0,2016.9,3.38890108]
[1742449403299,0.6631,2017.3,2017.2,0.79316]
[1742449403787,0.6631,2017.3,2017.1,1.43287]
[1742449403989,0.6631,2017.3,2017.2,0.79316]
[1742449405095,2.0752,2017.3,2017.2,2.79946]
[1742449405296,2.86835,2017.3,2017.2,2.79946]
[1742449409397,0.79321,2017.2,2017.1,0.79319]
[1742449409695,2.09161,2017.2,2017.1,0.79319]
[1742449412992,0.7932,2017.1,2017.0,2.20101]
[1742449413298,2.7493,2017.1,2017.0,2.20101]
[1742449414100,2.7493,2017.1,2017.0,2.83324947]
[1742449416000,1.2798,2017.1,2017.0,2.83324947]
[1742449416593,2.073,2017.1,2017.0,2.83324947]
[1742449416792,1.2798,2017.1,2017.0,2.83324947]
[1742449417900,2.073,2017.1,2017.0,2.83324947]
[1742449418698,1.2798,2017.1,2017.0,2.83324947]
[1742449426313,2.073,2017.1,2017.0,2.83324947]
[1742449427408,1.2798,2017.1,2017.0,2.83324947]
[1742449428410,2.14255,2017.3,2017.2,0.79316]
[1742449429217,2.14255,2017.3,2017.2,1.42539947]
[1742449429818,3.45065,2017.3,2017.2,1.42539947]
[1742449437423,2.6575,2017.3,2017.2,2.07329947]
[1742449437616,3.45062,2017.3,2017.2,2.07329947]
[1742449440322,3.45062,2017.3,2017.2,0.63223947]
[1742449441718,6.61262,2017.3,2017.2,0.63223947]
[1742449442221,0.79332,2016.8,2016.7,7.16313]
[1742449442413,0.79332,2016.8,2016.7,4.00113]
[1742449443019,0.79332,2016.8,2016.7,3.2078]
[1742449443621,2.08392,2016.8,2016.7,3.2078]
[1742449445226,2.08392,2016.8,2016.7,4.00115]
[1742449445425,2.75922,2016.8,2016.7,4.00115]
[1742449446023,2.75922,2016.8,2016.7,0.79335]
[1742449446525,0.79335,2016.7,2016.6,2.10376]
[1742449446722,2.17325,2016.7,2016.6,2.10376]
[1742449448029,1.3799,2016.7,2016.6,2.10376]
[1742449448430,2.17325,2016.7,2016.6,2.10376]
[1742449448833,3.8067,2016.9,2016.8,0.79332]
[1742449449132,5.1099,2016.9,2016.8,0.79332]
[1742449449631,5.1099,2016.9,2016.8,2.20532]
[1742449450336,5.90322,2016.9,2016.8,2.20532]
[1742449450536,5.90322,2016.9,2016.8,1.412]
[1742449451028,5.1099,2016.9,2016.6,4.00118]
[1742449451233,0.79335,2016.7,2016.6,4.4929]
[1742449451631,1.49965,2016.7,2016.6,4.4929]
[1742449453238,1.49965,2016.7,2016.6,5.28629]
[1742449455743,1.49965,2016.7,2016.6,4.4929]
[1742449456240,1.49965,2016.7,2016.6,5.28629]
[1742449456840,1.49965,2016.7,2016.6,2.07849]
[1742449457340,1.49965,2016.7,2016.6,1.2851]
[1742449458037,2.78535,2016.7,2016.6,1.2851]
[1742449458538,2.78535,2016.7,2016.6,2.07849]
[1742449460637,2.78535,2016.7,2016.6,1.2851]
[1742449461437,2.07905,2016.7,2016.6,2.07849]
[1742449462442,2.07905,2016.7,2016.6,1.2851]
[1742449465435,0.79339,2016.6,2016.5,0.00744361]
[1742449465640,3.49089,2016.6,2016.5,1.29344361]
[1742449467039,2.12029,2016.6,2016.5,2.08687361]
[1742449467350,0.79339,2016.6,2016.5,2.08687361]
[1742449467645,2.12029,2016.6,2016.5,2.08687361]
[1742449468160,0.79339,2016.6,2016.5,2.08687361]
[1742449468364,5.28328,2016.7,2016.6,0.79339]
[1742449468551,5.28328,2016.7,2016.6,2.07999]
[1742449470258,5.28328,2016.7,2016.6,1.2866]
[1742449471961,5.28328,2016.7,2016.6,2.07999]
[1742449474463,2.12028,2016.7,2016.6,2.07999]
[1742449480261,2.12028,2016.7,2016.6,1.2866]
[1742449481668,0.79339,2016.6,2016.5,0.00744361]
[1742449481868,5.96059,2016.6,2016.5,1.30704361]
[1742449482965,5.27279,2016.6,2016.5,2.10047361]
[1742449484167,5.27279,2016.6,2016.5,1.30704361]
[1742449484471,5.27279,2016.6,2016.5,2.10047361]
[1742449484766,5.27279,2016.6,2016.5,1.30704361]
[1742449484963,5.27279,2016.6,2016.5,2.10047361]
[1742449485367,5.27279,2016.6,2016.5,1.30704361]
[1742449485568,5.27279,2016.6,2016.5,2.10047361]
[1742449485768,5.27279,2016.6,2016.5,1.30704361]
[1742449492076,5.27279,2016.6,2016.5,2.10047361]
[1742449492676,5.27279,2016.6,2016.5,1.30704361]
[1742449500179,5.27279,2016.6,2016.5,0.00744361]
[1742449502986,5.27179,2016.6,2016.5,0.00744361]
[1742449503184,5.27179,2016.6,2016.5,1.41274361]
[1742449505682,5.27179,2016.6,2016.5,2.20617361]
[1742449505983,5.27179,2016.6,2016.5,2.89517361]
[1742449506388,5.27179,2016.6,2016.5,2.10174361]
[1742449506575,5.27179,2016.6,2016.5,2.89517361]
[1742449506772,5.27179,2016.6,2016.5,2.10174361]
[1742449507376,5.27179,2016.6,2016.5,0.00744361]
[1742449530997,0.79347,2016.4,2016.3,1.3217]
[1742449531202,7.16327,2016.4,2016.3,1.3217]
[1742449531594,8.46957,2016.4,2016.3,1.3217]
[1742449535209,0.79355,2016.2,2016.1,0.00744361]
[1742449535400,3.95555,2016.2,2016.1,1.40504361]
[1742449535797,5.93165,2016.2,2016.1,1.40504361]
[1742449541916,3.95555,2016.2,2016.1,1.40504361]
[1742449543010,5.31035,2016.2,2016.1,1.40504361]
[1742449545013,0.79355,2016.2,2016.1,1.40504361]
[1742449545615,9.91554,2016.3,2016.1,2.19861361]
[1742449545919,6.75354,2016.3,2016.2,0.6976]
[1742449546117,6.75354,2016.3,2016.2,2.646]
[1742449547019,8.07784,2016.3,2016.2,2.646]
[1742449550916,2.11784,2016.3,2016.2,2.646]
[1742449560215,2.11784,2016.3,2016.2,1.3088]
[1742449560418,0.79355,2016.2,2016.1,0.00744361]
[1742449560725,5.96955,2016.2,2016.1,0.00744361]
[1742449561514,14.42955,2016.2,2016.1,3.61e-06]
[1742449561717,0.79379,2015.6,2015.5,1.9665]
[1742449561935,7.16359,2015.6,2015.5,1.9665]
[1742449562421,0.79387,2015.4,2015.3,40.8]
[1742449562622,0.79387,2015.4,2015.2,0.7008]
[1742449562623,0.79391,2015.3,2015.2,1.3822]
[1742449563920,5.32921,2015.3,2015.2,1.3263]
[1742449564122,6.67101,2015.3,2015.2,1.3263]
[1742449564327,0.79394,2015.2,2015.1,40.80744361]
[1742449564634,5.28344,2015.2,2015.1,40.80744361]
[1742449565230,5.28344,2015.2,2015.1,0.00744361]
[1742449565728,11.24344,2015.2,2015.1,0.00744361]
[1742449565930,0.79422,2014.5,2014.4,0.6444]
[1742449566130,0.79422,2014.5,2014.4,2.7089]
[1742449566530,2.07162,2014.5,2014.4,2.0645]
[1742449567434,2.07162,2014.5,2014.4,42.8645]
[1742449568331,2.07162,2014.5,2014.4,40.8]
[1742449568934,2.07162,2014.5,2014.2,1.39374361]
[1742449568935,0.7943,2014.3,2014.2,1.39374361]
[1742449569134,3.9563,2014.3,2014.2,1.39374361]
[1742449569338,3.9563,2014.3,2014.2,42.19374361]
[1742449569635,3.9573,2014.3,2014.2,42.19374361]
[1742449571434,3.163,2014.3,2014.2,42.98808361]
[1742449571735,3.2078,2014.4,2014.3,0.7943]
[1742449572432,3.2078,2014.4,2014.3,41.5943]
[1742449572632,4.00206,2014.4,2014.3,41.5943]
[1742449573129,3.2078,2014.4,2014.3,41.5943]
[1742449575239,0.80167361,2014.5,2014.4,0.79426]
[1742449575440,0.80167361,2014.5,2014.4,2.87136]
[1742449575939,0.00744361,2014.5,2014.4,2.87136]
[1742449576333,0.80166361,2014.5,2014.4,2.0771]
[1742449576535,0.80166361,2014.5,2014.4,2.87136]
[1742449576836,0.00744361,2014.5,2014.4,2.87136]
[1742449579446,0.00744361,2014.5,2014.4,43.67136]
[1742449581039,4.00189,2014.9,2014.8,0.7941]
[1742449581237,7.16489,2014.9,2014.8,0.7941]
[1742449581437,3.2078,2014.9,2014.8,0.7941]
[1742449581636,7.16486,2014.9,2014.8,0.7941]
[1742449581839,3.2078,2014.9,2014.8,0.7941]
[1742449582741,4.00186,2014.9,2014.8,0.7941]
[1742449583634,3.2078,2014.9,2014.8,0.7941]
[1742449584031,3.2078,2014.9,2014.8,1.4421]
[1742449584238,0.79404,2015.0,2014.9,0.79406]
[1742449584447,0.79404,2015.0,2014.9,2.13946]
[1742449584640,1.38354361,2015.1,2015.0,0.79402]
[1742449584842,6.6345,2015.3,2015.2,0.79394]
[1742449584843,5.96,2015.3,2015.2,0.79394]
[1742449585039,5.33458,2015.4,2015.3,0.79391]
[1742449585242,4.5407,2015.4,2015.3,0.79391]
[1742449585438,3.163,2015.4,2015.3,0.79391]
[1742449585742,3.163,2015.4,2015.3,1.46441]
[1742449586240,3.2078,2015.5,2015.4,0.79387]
[1742449586435,6.3708,2015.5,2015.4,2.13927]
[1742449586636,3.2078,2015.5,2015.4,2.13927]
[1742449586945,0.00744361,2015.6,2015.5,0.79383]
[1742449591250,2.19713361,2015.6,2015.5,0.79383]
[1742449591951,1.40334361,2015.6,2015.5,0.79383]
[1742449593550,2.19713361,2015.6,2015.5,0.79383]
[1742449598148,2.19713361,2015.6,2015.4,1.3454]
[1742449598457,0.79388,2015.4,2015.3,0.79387]
[1742449598753,0.79388,2015.4,2015.3,2.18047]
[1742449599150,2.07478,2015.4,2015.3,2.18047]
[1742449599754,1.2809,2015.4,2015.3,2.18047]
[1742449600251,2.07477,2015.4,2015.3,2.18047]
[1742449600456,1.2809,2015.4,2015.3,2.18047]
[1742449601357,2.07477,2015.4,2015.3,2.18047]
[1742449605359,1.2809,2015.4,2015.3,2.18047]
[1742449606156,3.16944361,2015.6,2015.3,1.3866]
[1742449606348,1.2964,2015.5,2015.4,2.14477]
[1742449608955,1.2964,2015.5,2015.4,2.82217]
[1742449610463,1.2964,2015.5,2015.4,2.14477]
[1742449610464,2.09023,2015.5,2015.4,2.14477]
[1742449610963,2.09023,2015.5,2015.4,0.79387]
[1742449611264,0.79391,2015.3,2015.2,3.21524361]
[1742449611461,3.95591,2015.3,2015.2,3.21524361]
[1742449611851,5.26881,2015.3,2015.2,3.21524361]
[1742449612047,5.26881,2015.3,2015.2,4.00918361]
[1742449612663,5.26881,2015.3,2015.2,3.21524361]
[1742449613257,5.26881,2015.3,2015.2,4.00918361]
[1742449613555,5.26881,2015.3,2015.2,3.21524361]
[1742449616363,5.26881,2015.3,2015.2,0.00744361]
[1742449617563,5.26881,2015.3,2015.2,1.42054361]
[1742449618058,5.26881,2015.3,2015.2,0.00744361]
[1742449618659,5.26881,2015.3,2015.1,1.4131]
[1742449618660,0.79402,2015.0,2014.9,0.6875]
[1742449618860,0.79402,2015.0,2014.9,2.1006]
[1742449619157,0.79402,2015.0,2014.9,1.4131]
[1742449619361,3.49072,2015.0,2014.9,1.4131]
[1742449620061,0.7941,2014.8,2014.7,1.44155361]
[1742449620263,0.7941,2014.8,2014.7,2.06054361]
[1742449620461,0.7941,2014.8,2014.7,1.42054361]
[1742449620666,2.1615,2014.8,2014.7,0.00744361]
[1742449623167,0.79422,2014.5,2014.4,40.8]
[1742449623376,0.79422,2014.5,2014.4,1.398]
[1742449623878,2.17482,2014.5,2014.4,1.398]
[1742449624372,0.79426,2014.4,2014.3,41.44]
[1742449624572,2.17486,2014.4,2014.3,1.304]
[1742449624774,5.33786,2014.4,2014.3,1.304]
[1742449625262,0.7943,2014.3,2014.2,0.00744361]
[1742449625571,2.1749,2014.3,2014.2,1.31144361]
[1742449628473,2.1749,2014.3,2014.2,0.00744361]
[1742449629075,2.1749,2014.3,2014.2,1.39574361]
[1742449633278,1.3806,2014.3,2014.2,2.19008361]
[1742449633579,5.27987,2014.4,2014.3,0.7943]
[1742449633768,1.3226,2014.4,2014.3,2.1604]
[1742449633975,5.96,2014.5,2014.4,0.79426]
[1742449634179,6.75422,2014.5,2014.4,2.16036]
[1742449634778,5.96,2014.5,2014.4,2.16036]
[1742449635575,6.75422,2014.5,2014.4,2.16036]
[1742449635776,3.21524361,2014.6,2014.5,0.79422]
[1742449636074,3.21524361,2014.6,2014.5,2.80312]
[1742449636380,0.80162361,2014.6,2014.5,2.80312]
[1742449636880,0.00744361,2014.6,2014.5,2.80312]
[1742449637180,0.80162361,2014.6,2014.5,2.80312]
[1742449639776,0.00744361,2014.6,2014.5,2.80312]
[1742449641473,0.80162361,2014.6,2014.5,2.80312]
[1742449641678,1.30724361,2014.6,2014.5,2.80312]
[1742449642274,2.10142361,2014.6,2014.5,2.80312]
[1742449642582,2.10142361,2014.6,2014.5,1.3385]
[1742449642781,6.01072361,2014.6,2014.5,1.3385]
[1742449642981,6.01072361,2014.6,2014.3,1.3379]
[1742449642982,0.79426,2014.4,2014.3,2.1322]
[1742449643182,3.95726,2014.4,2014.3,2.0222]
[1742449643586,0.7943,2014.3,2014.2,0.00744361]
[1742449643781,2.1603,2014.3,2014.2,2.15638361]
[1742449644389,2.1603,2014.3,2014.2,1.36204361]
[1742449646477,2.1603,2014.3,2014.2,2.15638361]
[1742449646678,2.1603,2014.3,2014.2,1.36204361]
[1742449646988,1.366,2014.3,2014.2,2.15638361]
[1742449647289,2.1603,2014.3,2014.2,2.15638361]
[1742449648088,5.3681,2014.3,2014.2,0.00744361]
[1742449651791,5.3681,2014.3,2013.7,0.6411]
[1742449651792,0.7945,2013.8,2013.7,0.6411]
[1742449652001,0.79454,2013.7,2013.6,2.081]
[1742449652293,2.07534,2013.7,2013.6,2.081]
[1742449653094,2.07534,2013.7,2013.5,4.68141]
[1742449653095,0.79458,2013.6,2013.5,3.2078]
[1742449653298,5.23838,2013.6,2013.5,3.2078]
[1742449653486,5.23838,2013.6,2013.5,4.5939]
[1742449653686,4.4438,2013.6,2013.5,5.38852]
[1742449653994,0.79456,2013.7,2013.6,0.79458]
[1742449654196,0.79456,2013.7,2013.6,2.18068]
[1742449654390,3.95856,2013.7,2013.6,2.85968]
[1742449656189,3.95856,2013.7,2013.6,2.0651]
[1742449656795,0.79458,2013.6,2013.5,3.2078]
[1742449656994,2.76838,2013.6,2013.5,3.2078]
[1742449657293,2.76838,2013.6,2013.5,4.5624]
[1742449657895,2.76838,2013.6,2013.5,5.35702]
[1742449658294,0.79458,2013.6,2013.5,5.35702]
[1742449658895,2.08848,2013.6,2013.5,4.5624]
[1742449659699,2.75998,2013.6,2013.5,4.5624]
[1742449660396,2.08848,2013.6,2013.5,5.35702]
[1742449660598,3.164,2013.6,2013.5,4.5624]
[1742449660788,3.2078,2014.3,2013.8,1.98625]
[1742449660994,5.28281,2014.1,2014.0,0.79439]
[1742449661300,5.28281,2014.1,2014.0,2.21019]
[1742449661603,3.164,2014.2,2014.1,0.79436]
[1742449661795,3.164,2014.2,2014.1,2.21016]
[1742449662499,0.79438,2014.2,2014.1,2.21016]
[1742449662699,3.164,2014.3,2014.2,0.79434]
[1742449662903,3.95829,2014.4,2014.3,0.79428]
[1742449663102,3.95829,2014.4,2014.3,2.14188]
[1742449663497,3.95829,2014.4,2014.3,1.3476]
[1742449663702,0.7943,2014.3,2014.2,2.21014]
[1742449663895,0.7943,2014.3,2014.2,0.6719]
[1742449664202,2.0733,2014.3,2014.2,0.6719]
[1742449665800,2.0733,2014.3,2014.2,1.46624]
[1742449666903,2.0733,2014.3,2014.2,0.6719]
[1742449667308,1.279,2014.3,2014.2,1.46624]
[1742449668203,0.79426,2014.4,2014.3,0.79427]
[1742449668392,5.30625,2014.5,2014.4,0.79426]
[1742449668791,0.00744361,2014.6,2014.5,0.79422]
[1742449669306,0.00744361,2014.6,2014.5,41.59422]
[1742449669507,0.00744361,2014.6,2014.5,42.25982]
[1742449670400,9.1678,2015.2,2014.9,0.79405]
[1742449670705,2.11132,2015.0,2014.9,0.79406]
[1742449670906,3.171,2015.1,2014.6,3.8781]
[1742449671095,3.171,2015.1,2015.0,0.79402]
[1742449671598,0.79402,2015.0,2014.9,0.79405]
[1742449672198,1.3173,2015.0,2014.9,0.79405]
[1742449672998,1.3173,2015.0,2014.9,0.79406]
[1742449673206,3.96501,2015.1,2014.9,0.79406]
[1742449673504,5.35931,2015.1,2014.8,0.00744361]
[1742449673706,3.171,2015.1,2015.0,0.79402]